bitfinex-derivatives/quotes_BTCF0:USTF0_20241130
["timestamp","ask_amount","ask_price","bid_price","bid_amount"]
[1732942416541,0.003,96745.0,96744.0,0.00940154]
[1732942416740,0.13024,96745.0,96744.0,0.00940154]
[1732942417243,0.13024,96745.0,96744.0,0.01586412]
[1732942418250,0.12924,96745.0,96744.0,0.01586412]
[1732942418451,0.13124,96745.0,96744.0,0.01586412]
[1732942418846,0.12924,96745.0,96744.0,0.01486412]
[1732942419044,0.12924,96745.0,96744.0,0.01586412]
[1732942419247,0.13124,96745.0,96744.0,0.01586412]
[1732942419644,0.004,96745.0,96744.0,0.01586412]
[1732942421350,0.004,96745.0,96744.0,0.01586393]
[1732942425062,0.004,96745.0,96744.0,0.01586395]
[1732942425961,0.002,96745.0,96744.0,0.01486395]
[1732942426164,0.004,96745.0,96744.0,0.01486395]
[1732942426574,0.002,96745.0,96744.0,0.01486395]
[1732942426761,0.004,96745.0,96744.0,0.01486395]
[1732942427358,0.004,96745.0,96744.0,0.01486398]
[1732942427560,0.004,96745.0,96744.0,0.06652298]
[1732942428766,0.004,96745.0,96744.0,0.06652294]
[1732942429365,0.004,96745.0,96744.0,0.25248975]
[1732942430563,0.002,96745.0,96744.0,0.051659]
[1732942430771,0.004,96745.0,96744.0,0.06652293]
[1732942431269,0.002,96745.0,96744.0,0.06652293]
[1732942431565,0.004,96745.0,96744.0,0.06652293]
[1732942432182,0.004,96745.0,96744.0,0.25251677]
[1732942433972,0.004,96745.0,96744.0,0.06652293]
[1732942436773,0.004,96745.0,96744.0,0.09932293]
[1732942437178,0.004,96745.0,96744.0,0.28531677]
[1732942438271,0.002,96745.0,96744.0,0.28531677]
[1732942438672,0.004,96745.0,96744.0,0.28531677]
[1732942439678,0.004,96745.0,96744.0,0.09932293]
[1732942441284,0.004,96745.0,96744.0,0.10009525]
[1732942442178,0.004,96745.0,96744.0,0.09932293]
[1732942447071,0.004,96745.0,96744.0,0.12942293]
[1732942447482,0.004,96745.0,96744.0,0.31544802]
[1732942447886,0.004,96745.0,96744.0,0.12942293]
[1732942448791,0.004,96745.0,96744.0,0.12942132]
[1732942456279,0.004,96745.0,96744.0,0.49022132]
[1732942457493,0.004,96745.0,96744.0,0.12942132]
[1732942457690,0.004,96745.0,96744.0,0.49022132]
[1732942458088,0.004,96745.0,96744.0,0.12942132]
[1732942458291,0.004,96745.0,96744.0,0.49022132]
[1732942459641,0.004,96745.0,96744.0,0.49022139]
[1732942462689,0.004,96745.0,96744.0,0.475359]
[1732942463218,0.004,96745.0,96744.0,0.49022139]
[1732942464090,0.004,96745.0,96744.0,0.48699044]
[1732942464287,0.004,96745.0,96744.0,0.475359]
[1732942464489,0.004,96745.0,96744.0,0.49022139]
[1732942468590,0.004,96745.0,96744.0,0.475359]
[1732942468896,0.004,96745.0,96744.0,0.49022139]
[1732942470904,0.01221673,96753.0,96752.0,0.051655]
[1732942471202,0.1272,96756.0,96755.0,0.051653]
[1732942471398,0.1272,96756.0,96755.0,0.06005348]
[1732942472354,0.1272,96756.0,96755.0,0.06105348]
[1732942472893,0.1292,96756.0,96755.0,0.06105348]
[1732942474596,0.14166451,96756.0,96755.0,0.06105348]
[1732942475208,0.14166451,96756.0,96755.0,0.24692833]
[1732942475810,0.14166451,96756.0,96755.0,0.24692828]
[1732942476207,0.14166451,96756.0,96755.0,0.06105343]
[1732942476708,0.14166451,96756.0,96755.0,0.24712962]
[1732942476903,0.14166451,96756.0,96755.0,0.24612962]
[1732942477214,0.14166451,96756.0,96755.0,0.24712962]
[1732942477410,0.14166451,96756.0,96755.0,0.06105343]
[1732942477809,0.13966451,96756.0,96755.0,0.06105343]
[1732942478711,0.13966451,96756.0,96755.0,0.06751531]
[1732942482310,0.01246451,96756.0,96755.0,0.06751531]
[1732942482518,0.0309,96759.0,96757.0,0.051652]
[1732942482824,0.0309,96759.0,96757.0,0.06651431]
[1732942483353,0.0309,96759.0,96757.0,0.06651377]
[1732942484315,0.04273912,96758.0,96757.0,0.06651377]
[1732942485003,0.04273912,96758.0,96757.0,0.06751377]
[1732942486624,0.04273912,96758.0,96757.0,0.06751375]
[1732942487005,0.04273912,96758.0,96757.0,0.42831375]
[1732942487614,0.04273912,96758.0,96757.0,0.42185212]
[1732942490110,0.04273912,96758.0,96757.0,0.42185208]
[1732942490312,0.04273912,96758.0,96757.0,0.06105208]
[1732942490610,0.04273912,96758.0,96757.0,0.42185208]
[1732942492717,0.01213912,96758.0,96757.0,0.42185208]
[1732942492919,0.12716,96759.0,96757.0,0.60794193]
[1732942493117,0.12716,96759.0,96758.0,0.00840008]
[1732942493802,0.12716,96759.0,96758.0,0.01486139]
[1732942493928,0.12716,96759.0,96758.0,0.37566139]
[1732942495120,0.12716,96759.0,96758.0,0.37666139]
[1732942497215,0.12716,96759.0,96758.0,0.37666104]
[1732942497429,0.13917837,96759.0,96758.0,0.37666104]
[1732942497724,0.13917837,96759.0,96758.0,0.37666105]
[1732942498319,0.13917837,96759.0,96758.0,0.37019972]
[1732942498627,0.13917837,96759.0,96758.0,0.37666105]
[1732942501735,0.13917837,96759.0,96758.0,0.37019972]
[1732942506919,0.13917837,96759.0,96758.0,0.37019974]
[1732942508737,0.13917837,96759.0,96758.0,0.37666107]
[1732942510475,0.13917837,96759.0,96758.0,0.3766611]
[1732942514839,0.13917837,96759.0,96758.0,0.4283131]
[1732942517342,0.13917837,96759.0,96758.0,0.61440295]
[1732942520655,0.19082937,96759.0,96758.0,0.37019975]
[1732942520850,0.19082937,96759.0,96758.0,0.00939975]
[1732942520851,0.06366937,96759.0,96758.0,0.00939975]
[1732942521045,0.19078937,96759.0,96758.0,0.00940058]
[1732942521346,0.19078937,96759.0,96758.0,0.00423099]
[1732942521759,0.19078937,96759.0,96758.0,0.00940073]
[1732942522451,0.19078937,96759.0,96758.0,0.00423099]
[1732942524448,0.19078937,96759.0,96758.0,0.001]
[1732942531352,0.12712,96759.0,96758.0,0.00423109]
[1732942531563,0.178771,96759.0,96758.0,0.00423109]
[1732942532954,0.178771,96759.0,96758.0,0.00423108]
[1732942534046,0.178771,96759.0,96758.0,0.001]
[1732942534257,0.178771,96759.0,96758.0,0.00423108]
[1732942536110,0.178771,96759.0,96758.0,0.00423119]
[1732942539254,0.178771,96759.0,96758.0,0.001]
[1732942540160,0.539571,96759.0,96758.0,0.001]
[1732942543554,0.56025002,96759.0,96758.0,0.001]
[1732942544365,0.19945002,96759.0,96758.0,0.001]
[1732942544663,0.56025002,96759.0,96758.0,0.001]
[1732942546059,0.19945002,96759.0,96758.0,0.001]
[1732942546265,0.56025002,96759.0,96758.0,0.001]
[1732942546451,0.56025002,96759.0,96758.0,0.00423117]
[1732942548367,0.56025002,96759.0,96758.0,0.00940106]
[1732942551062,0.56017002,96759.0,96758.0,0.00940106]
[1732942554463,0.56017002,96759.0,96758.0,0.00423117]
[1732942555563,0.19937002,96759.0,96758.0,0.00423117]
[1732942555765,0.56017002,96759.0,96758.0,0.00423117]
[1732942556464,0.19937002,96759.0,96758.0,0.00423117]
[1732942556665,0.56017002,96759.0,96758.0,0.00423117]
[1732942558669,0.19937002,96759.0,96758.0,0.00423117]
[1732942558870,0.56017002,96759.0,96758.0,0.00423117]
[1732942560601,0.56017002,96759.0,96758.0,0.001]
[1732942560793,0.56017002,96759.0,96758.0,0.00423117]
[1732942561472,0.56017002,96759.0,96758.0,0.00940106]
[1732942567781,0.19937002,96759.0,96758.0,0.00940106]
[1732942567975,0.56017002,96759.0,96758.0,0.00940106]
[1732942568578,0.56017002,96759.0,96758.0,0.00423117]
[1732942569282,0.56017002,96759.0,96758.0,0.001]
[1732942574084,0.56017002,96759.0,96734.0,0.0632]
[1732942574279,0.051662,96739.0,96736.0,0.051663]
[1732942574480,0.178702,96739.0,96738.0,0.00478214]
[1732942576588,0.178702,96739.0,96738.0,0.00995283]
[1732942576987,0.179702,96739.0,96738.0,0.00995283]
[1732942578603,0.179702,96739.0,96738.0,0.01641619]
[1732942581586,0.19218659,96739.0,96738.0,0.01641619]
[1732942583689,0.19218659,96739.0,96738.0,0.00995283]
[1732942584624,0.19218659,96739.0,96738.0,0.00995285]
[1732942589392,0.19218659,96739.0,96738.0,0.0015505]
[1732942591892,0.19218659,96739.0,96738.0,0.00478217]
[1732942592697,0.19218659,96739.0,96738.0,0.0015505]
[1732942593002,0.19218659,96739.0,96738.0,0.00478217]
[1732942594200,0.19218659,96739.0,96738.0,0.00995284]
[1732942594893,0.19218659,96739.0,96738.0,0.00478217]
[1732942595403,0.19218659,96739.0,96738.0,0.00995285]
[1732942596508,0.19218659,96739.0,96738.0,0.00478217]
[1732942597503,0.19218659,96739.0,96738.0,0.00323167]
[1732942598305,0.19218659,96739.0,96738.0,0.00840235]
[1732942599402,0.19218659,96739.0,96738.0,0.0148657]
[1732942605804,0.19218659,96739.0,96738.0,0.20090354]
[1732942606899,0.19218659,96739.0,96738.0,0.0148657]
[1732942607105,0.19218659,96739.0,96738.0,0.20090354]
[1732942607807,0.19218659,96739.0,96738.0,0.0148657]
[1732942610007,0.19218659,96739.0,96738.0,0.0665277]
[1732942610703,0.19218659,96739.0,96738.0,0.06729913]
[1732942611611,0.01348459,96739.0,96738.0,0.0665277]
[1732942611906,0.01348459,96739.0,96738.0,0.06729913]
[1732942612310,0.01348459,96739.0,96738.0,0.06652687]
[1732942619508,0.01348459,96739.0,96738.0,0.06652649]
[1732942621814,0.01348459,96739.0,96738.0,0.051662]
[1732942622119,0.01348459,96739.0,96738.0,0.06652649]
[1732942623720,0.01348459,96739.0,96738.0,0.06729852]
[1732942625713,0.01348459,96739.0,96738.0,0.06652644]
[1732942626708,0.01348459,96739.0,96738.0,0.06729844]
[1732942628724,0.01348459,96739.0,96738.0,0.06652644]
[1732942631525,0.01348459,96739.0,96738.0,0.25244957]
[1732942631720,0.01348459,96739.0,96738.0,0.06006364]
[1732942631918,0.01348459,96739.0,96738.0,0.06652655]
[1732942632825,0.01348459,96739.0,96738.0,0.06006364]
[1732942633719,0.01348459,96739.0,96738.0,0.31435934]
[1732942634022,0.0015508,96759.0,96738.0,0.0148642]
[1732942634226,0.0015508,96759.0,96758.0,0.051652]
[1732942634527,0.1285108,96759.0,96758.0,0.0548834]
[1732942635725,0.0025508,96759.0,96758.0,0.0548834]
[1732942635930,0.1295108,96759.0,96758.0,0.051652]
[1732942636427,0.1295108,96759.0,96758.0,0.052652]
[1732942636925,0.1295108,96759.0,96758.0,0.05588305]
[1732942638927,0.14157276,96759.0,96758.0,0.05588305]
[1732942640829,0.14157276,96759.0,96758.0,0.06105273]
[1732942643824,0.14157276,96759.0,96758.0,0.05588305]
[1732942647931,0.14157276,96759.0,96758.0,0.052652]
[1732942648637,0.14157276,96759.0,96758.0,0.05588305]
[1732942649136,0.14157276,96759.0,96758.0,0.052652]
[1732942650744,0.01461276,96759.0,96758.0,0.052652]
[1732942650930,0.14149276,96759.0,96758.0,0.052652]
[1732942652138,0.14149276,96759.0,96758.0,0.06105273]
[1732942652939,0.14149276,96759.0,96758.0,0.052652]
[1732942653337,0.14149276,96759.0,96758.0,0.06105273]
[1732942659241,0.14149276,96759.0,96758.0,0.05588305]
[1732942664148,0.14149276,96759.0,96758.0,0.06105273]
[1732942666138,0.14149276,96759.0,96758.0,0.06751483]
[1732942677446,0.14149276,96759.0,96758.0,0.06751411]
[1732942680455,0.01461276,96759.0,96758.0,0.06751411]
[1732942681360,0.01461276,96759.0,96758.0,0.06105232]
[1732942681561,0.01461276,96759.0,96758.0,0.06751391]
[1732942683252,0.01461276,96759.0,96758.0,0.06105232]
[1732942683467,0.01461276,96759.0,96758.0,0.06105201]
[1732942685565,0.01461276,96759.0,96758.0,0.06751355]
[1732942687467,0.01461276,96759.0,96758.0,0.06751354]
[1732942689970,0.01461276,96759.0,96758.0,0.42831354]
[1732942696771,0.01461276,96759.0,96758.0,0.61427825]
[1732942697976,0.06626376,96759.0,96758.0,0.37666154]
[1732942698674,0.06626376,96759.0,96758.0,0.37666225]
[1732942699670,0.06626376,96759.0,96758.0,0.01586225]
[1732942701375,0.06626376,96759.0,96758.0,0.001]
[1732942701570,0.06626376,96759.0,96758.0,0.0094004]
[1732942701772,0.06626376,96759.0,96758.0,0.01586225]
[1732942702467,0.06626376,96759.0,96758.0,0.0094004]
[1732942704272,0.06626376,96759.0,96758.0,0.01586225]
[1732942704476,0.06626376,96759.0,96758.0,0.0094004]
[1732942708581,0.06626376,96759.0,96758.0,0.19536796]
[1732942709786,0.06626376,96759.0,96758.0,0.0094004]
[1732942711681,0.06626376,96759.0,96758.0,0.01586226]
[1732942712079,0.06626376,96759.0,96758.0,0.001]
[1732942712287,0.06626376,96759.0,96758.0,0.01586228]
[1732942715180,0.06471296,96759.0,96758.0,0.01586228]
[1732942717581,0.06471296,96759.0,96758.0,0.00940042]
[1732942717787,0.19151296,96759.0,96758.0,0.00940042]
[1732942720083,0.19151296,96759.0,96758.0,0.19540929]
[1732942720486,0.19151296,96759.0,96758.0,0.00940042]
[1732942721691,0.19151296,96759.0,96758.0,0.19540929]
[1732942723193,0.19151296,96759.0,96758.0,0.00940042]
[1732942726589,0.19151296,96759.0,96758.0,0.01586228]
[1732942726999,0.19151296,96759.0,96758.0,0.00940042]
[1732942729899,0.19151296,96759.0,96758.0,0.001]
[1732942730091,0.19151296,96759.0,96758.0,0.00940105]
[1732942732904,0.55231296,96759.0,96758.0,0.00940105]
[1732942734707,0.55231296,96759.0,96758.0,0.00423117]
[1732942740401,0.55231296,96759.0,96758.0,0.00940093]
[1732942741114,0.55231296,96759.0,96758.0,0.00423117]
[1732942741300,0.42551296,96759.0,96758.0,0.00940083]
[1732942741505,0.55223296,96759.0,96758.0,0.00940083]
[1732942741706,0.55223296,96759.0,96758.0,0.01586287]
[1732942743318,0.55223296,96759.0,96758.0,0.0158626]
[1732942749205,0.06471296,96759.0,96758.0,0.0158626]
[1732942749408,0.01306196,96759.0,96758.0,0.0158626]
[1732942749617,0.13978196,96759.0,96758.0,0.0489626]
[1732942756410,0.13978196,96759.0,96758.0,0.0341]
[1732942756611,0.13978196,96759.0,96758.0,0.04896196]
[1732942758416,0.13978196,96759.0,96758.0,0.04250024]
[1732942758611,0.13978196,96759.0,96758.0,0.04896209]
[1732942758815,0.13978196,96759.0,96758.0,0.04250024]
[1732942760317,0.13978196,96759.0,96758.0,0.00940024]
[1732942760715,0.13978196,96759.0,96758.0,0.01586203]
[1732942761210,0.01306196,96759.0,96758.0,0.37666183]
[1732942761914,0.01306196,96759.0,96758.0,0.01586183]
[1732942762209,0.01306196,96759.0,96758.0,0.37666183]
[1732942763813,0.01306196,96759.0,96758.0,0.37743373]
[1732942764524,0.01306196,96759.0,96758.0,0.3774333]
[1732942764816,0.01306196,96759.0,96758.0,0.37666145]
[1732942768116,0.01306196,96759.0,96758.0,0.01586145]
[1732942768322,0.01306196,96759.0,96758.0,0.37666145]
[1732942768818,0.01306196,96759.0,96758.0,0.37743334]
[1732942769412,0.01306196,96759.0,96758.0,0.37666145]
[1732942771420,0.01306196,96759.0,96758.0,0.3618]
[1732942771727,0.01306196,96759.0,96758.0,0.37666146]
[1732942773522,0.01306196,96759.0,96758.0,0.3618]
[1732942773719,0.01306196,96759.0,96758.0,0.3669692]
[1732942774035,0.01306196,96759.0,96758.0,0.37666145]
[1732942777229,0.01306196,96759.0,96758.0,0.01586145]
[1732942777532,0.01306196,96759.0,96758.0,0.37666145]
[1732942777936,0.01306196,96759.0,96758.0,0.01586145]
[1732942778140,0.01306196,96759.0,96758.0,0.37666145]
[1732942778644,0.01306196,96759.0,96758.0,0.01586145]
[1732942778845,0.01306196,96759.0,96758.0,0.37666145]
[1732942779937,0.01306196,96759.0,96758.0,0.01586145]
[1732942780247,0.01306196,96759.0,96758.0,0.37666145]
[1732942784943,0.01306196,96759.0,96758.0,0.42831345]
[1732942787045,0.01306196,96759.0,96758.0,0.61432232]
[1732942788353,0.01306196,96759.0,96758.0,0.42831345]
[1732942793947,0.01306196,96759.0,96758.0,0.06751345]
[1732942795256,0.01306196,96759.0,96758.0,0.25352232]
[1732942795451,0.01306196,96759.0,96758.0,0.06751345]
[1732942795657,0.01306196,96759.0,96758.0,0.25352232]
[1732942795860,0.01306196,96759.0,96758.0,0.06751345]
[1732942796565,0.01306196,96759.0,96758.0,0.068286]
[1732942796857,0.01306196,96759.0,96758.0,0.06182458]
[1732942797059,0.01306196,96759.0,96758.0,0.06751365]
[1732942797359,0.01306196,96759.0,96758.0,0.06751368]
[1732942797558,0.01306196,96759.0,96758.0,0.06828619]
[1732942799150,0.01306196,96759.0,96758.0,0.06828618]
[1732942799363,0.13966196,96759.0,96758.0,0.06751368]
[1732942799662,0.01306196,96759.0,96758.0,0.06751368]
[1732942800360,0.01306196,96759.0,96758.0,0.06751241]
[1732942801958,0.01206196,96759.0,96758.0,0.31542203]
[1732942802162,0.1266,96765.0,96764.0,0.051648]
[1732942802460,0.1266,96765.0,96764.0,0.42730841]
[1732942804263,0.1266,96765.0,96764.0,0.42830841]
[1732942805867,0.13902115,96765.0,96764.0,0.42830841]
[1732942806161,0.13902115,96765.0,96764.0,0.42830804]
[1732942807561,0.01242115,96765.0,96764.0,0.42830804]
[1732942807759,0.1266,96766.0,96764.0,0.37666004]
[1732942807959,0.1266,96767.0,96766.0,0.051647]
[1732942808162,0.1266,96767.0,96766.0,0.06650704]
[1732942809067,0.1266,96767.0,96766.0,0.42807845]
[1732942809264,0.1266,96767.0,96766.0,0.42730704]
[1732942810365,0.1266,96767.0,96766.0,0.42830704]
[1732942810561,0.1266,96767.0,96766.0,0.42830661]
[1732942810871,0.04562928,96774.0,96773.0,0.051644]
[1732942811168,0.1,96800.0,96790.0,0.051634]
[1732942811362,0.1266,96791.0,96790.0,0.06003264]
[1732942811965,0.13863258,96791.0,96790.0,0.06003264]
[1732942812966,0.13863258,96791.0,96790.0,0.06903264]
[1732942813362,0.13863258,96791.0,96790.0,0.07803264]
[1732942816176,0.13863258,96791.0,96790.0,0.06103264]
[1732942817269,0.13863258,96791.0,96790.0,0.06749226]
[1732942820367,0.13863258,96791.0,96790.0,0.06749045]
[1732942820766,0.01203258,96791.0,96790.0,0.06749045]
[1732942820969,0.12656,96792.0,96791.0,0.051634]
[1732942821168,0.12656,96792.0,96791.0,0.06649045]
[1732942822268,0.12656,96792.0,96791.0,0.06749045]
[1732942823275,0.09771834,96798.0,96797.0,0.051631]
[1732942823468,0.22427834,96798.0,96797.0,0.06002812]
[1732942824374,0.22427834,96798.0,96797.0,0.05486066]
[1732942824767,0.1,96800.0,96797.0,0.05586066]
[1732942824967,0.1,96800.0,96799.0,0.05163]
[1732942825166,0.0307,96815.0,96814.0,0.051622]
[1732942825368,0.0307,96815.0,96814.0,0.05485166]
[1732942825563,0.04265974,96815.0,96814.0,0.05485166]
[1732942827066,0.00154982,96818.0,96814.0,0.05485166]
[1732942827270,0.12652,96833.0,96815.0,0.03492966]
[1732942827466,0.12652,96833.0,96831.0,0.051613]
[1732942828473,0.051611,96834.0,96832.0,0.051612]
[1732942828777,0.12652,96833.0,96832.0,0.051612]
[1732942829080,0.3732153,96838.0,96823.0,0.3608]
[1732942829281,0.051604,96847.0,96846.0,0.051604]
[1732942829671,0.178084,96847.0,96846.0,0.051604]
[1732942829879,0.178084,96847.0,96846.0,0.05483202]
[1732942830184,0.178084,96847.0,96844.0,0.3608]
[1732942830185,0.01326347,96851.0,96844.0,0.3608]
[1732942830383,0.051603,96849.0,96845.0,0.00322793]
[1732942830685,0.05396069,96854.0,96852.0,0.051601]
[1732942830885,0.0308,96857.0,96852.0,0.051601]
[1732942831177,0.01371452,96853.0,96852.0,0.00322783]
[1732942831881,0.01371452,96853.0,96852.0,0.01222783]
[1732942832182,0.01371452,96853.0,96852.0,0.06899333]
[1732942832479,0.14019452,96853.0,96852.0,0.07799333]
[1732942832681,0.01371452,96853.0,96852.0,0.07799333]
[1732942833378,0.01193987,96854.0,96852.0,0.39364794]
[1732942833572,0.051599,96857.0,96855.0,0.0516]
[1732942833775,0.051599,96857.0,96856.0,0.01484794]
[1732942834276,0.0313,96861.0,96856.0,0.06644694]
[1732942834471,0.0313,96861.0,96859.0,0.051598]
[1732942835082,0.3608,96867.0,96861.0,0.051596]
[1732942835386,0.3608,96867.0,96857.0,0.11946069]
[1732942835579,0.3608,96867.0,96857.0,0.0655]
[1732942835884,0.37334322,96867.0,96859.0,0.009]
[1732942836278,0.37334322,96867.0,96865.0,0.051594]
[1732942836675,0.37334322,96867.0,96866.0,0.00322745]
[1732942836881,0.37334322,96867.0,96866.0,0.00839138]
[1732942837077,0.37334322,96867.0,96866.0,0.0148464]
[1732942837272,0.02150205,96884.0,96873.0,0.05159]
[1732942837472,0.02150205,96884.0,96876.0,0.051589]
[1732942837473,0.05396069,96883.0,96876.0,0.051589]
[1732942837682,0.051588,96878.0,96876.0,0.01484623]
[1732942837881,0.16118892,96877.0,96876.0,0.01484623]
[1732942838080,0.16118892,96877.0,96876.0,0.00839138]
[1732942838286,0.52198892,96877.0,96876.0,0.00839138]
[1732942838785,0.39554892,96877.0,96876.0,0.00839138]
[1732942838978,0.52198892,96877.0,96876.0,0.00839138]
[1732942839179,0.39554892,96877.0,96876.0,0.00839138]
[1732942839377,0.52198892,96877.0,96876.0,0.01484646]
[1732942839678,0.52198892,96877.0,96876.0,0.02384646]
[1732942840691,0.52198892,96877.0,96876.0,0.03284646]
[1732942841482,0.39554892,96877.0,96876.0,0.03284646]
[1732942841688,0.52198892,96877.0,96876.0,0.03284646]
[1732942844088,0.52198892,96877.0,96876.0,0.03360873]
[1732942844288,0.52198892,96877.0,96876.0,0.03284646]
[1732942848788,0.34384358,96877.0,96876.0,0.03284646]
[1732942850895,0.34384358,96877.0,96876.0,0.018]
[1732942851092,0.34384358,96877.0,96876.0,0.03284572]
[1732942851888,0.37684358,96877.0,96876.0,0.03284572]
[1732942853289,0.34384358,96877.0,96876.0,0.03284572]
[1732942854288,0.21740358,96877.0,96876.0,0.03284572]
[1732942854488,0.34380358,96877.0,96876.0,0.04252763]
[1732942854691,0.31153058,96877.0,96876.0,0.04252763]
[1732942854988,0.31149058,96877.0,96876.0,0.04252763]
[1732942855191,0.26630829,96877.0,96876.0,0.04252763]
[1732942855894,0.051594,96866.0,96861.0,0.10847012]
[1732942856091,0.15956,96865.0,96850.0,0.051602]
[1732942856294,0.051598,96859.0,96850.0,0.412402]
[1732942856491,0.051601,96853.0,96851.0,0.0328]
[1732942856687,0.12636,96852.0,96851.0,0.0328]
[1732942857995,0.12636,96852.0,96851.0,0.0338]
[1732942859698,0.13336,96852.0,96851.0,0.0348]
[1732942859898,0.14236,96852.0,96851.0,0.0348]
[1732942860296,0.13436,96852.0,96851.0,0.0338]
[1732942860495,0.14336,96852.0,96851.0,0.0348]
[1732942860899,0.15566932,96852.0,96851.0,0.0348]
[1732942862599,0.15566932,96852.0,96851.0,0.0338]
[1732942862798,0.15266932,96852.0,96851.0,0.0348]
[1732942863404,0.14566932,96852.0,96851.0,0.0338]
[1732942863600,0.15366932,96852.0,96851.0,0.0348]
[1732942863801,0.15366932,96852.0,96851.0,0.04125593]
[1732942864304,0.15266932,96852.0,96851.0,0.04125593]
[1732942864600,0.15266932,96852.0,96851.0,0.00845593]
[1732942865801,0.15266932,96852.0,96851.0,0.0136211]
[1732942866191,0.15366932,96852.0,96851.0,0.0136211]
[1732942867190,0.15366932,96852.0,96851.0,0.00716517]
[1732942867600,0.15366932,96852.0,96851.0,0.00716519]
[1732942867906,0.1743277,96852.0,96851.0,0.01039343]
[1732942868998,0.1743277,96852.0,96851.0,0.01684992]
[1732942869199,0.1743277,96852.0,96851.0,0.01039343]
[1732942871394,0.1743277,96852.0,96851.0,0.00522824]
[1732942871797,0.1743277,96852.0,96851.0,0.01039343]
[1732942872101,0.1743277,96852.0,96851.0,0.00522824]
[1732942872697,0.5351277,96852.0,96851.0,0.00522824]
[1732942873908,0.5351277,96852.0,96851.0,0.002]
[1732942884113,0.5351277,96852.0,96837.0,0.3921]
[1732942884321,0.10792138,96847.0,96837.0,0.3921]
[1732942884617,0.051609,96838.0,96837.0,0.3921]
[1732942884805,0.177969,96838.0,96837.0,0.3921]
[1732942885407,0.177969,96838.0,96837.0,0.0313]
[1732942885806,0.177969,96838.0,96837.0,0.0323]
[1732942886415,0.183969,96838.0,96837.0,0.0313]
[1732942886717,0.191969,96838.0,96837.0,0.0323]
[1732942889823,0.20408803,96838.0,96837.0,0.0323]
[1732942895520,0.22475018,96838.0,96837.0,0.0323]
[1732942895723,0.35939018,96841.0,96837.0,0.03552852]
[1732942895915,0.05396069,96850.0,96841.0,0.051607]
[1732942896114,0.05396069,96850.0,96849.0,0.412403]
[1732942896115,0.10556369,96850.0,96849.0,0.412403]
[1732942896320,0.051603,96850.0,96849.0,0.412403]
[1732942897132,0.059603,96850.0,96849.0,0.412403]
[1732942897520,0.185963,96850.0,96849.0,0.412403]
[1732942898630,0.055603,96850.0,96849.0,0.414403]
[1732942898822,0.181963,96850.0,96849.0,0.414403]
[1732942899329,0.178963,96850.0,96849.0,0.413403]
[1732942899629,0.177963,96850.0,96849.0,0.412403]
[1732942899927,0.177963,96850.0,96849.0,0.413403]
[1732942901030,0.180963,96850.0,96849.0,0.414403]
[1732942901233,0.19334508,96850.0,96849.0,0.414403]
[1732942901925,0.19434508,96850.0,96849.0,0.414403]
[1732942902433,0.19134508,96850.0,96849.0,0.413403]
[1732942902636,0.19434508,96850.0,96849.0,0.414403]
[1732942904637,0.19434508,96850.0,96849.0,0.3628]
[1732942904934,0.19134508,96850.0,96849.0,0.3618]
[1732942905131,0.19434508,96850.0,96849.0,0.3618]
[1732942905722,0.19034508,96850.0,96849.0,0.3608]
[1732942905935,0.19434508,96850.0,96849.0,0.3618]
[1732942906329,0.19334508,96850.0,96849.0,0.3608]
[1732942906533,0.19434508,96850.0,96849.0,0.3618]
[1732942906831,0.19434508,96850.0,96849.0,0.001]
[1732942907027,0.19434508,96850.0,96841.0,0.3608]
[1732942907028,0.051607,96842.0,96841.0,0.3608]
[1732942907235,0.177967,96842.0,96841.0,0.3608]
[1732942908838,0.180967,96842.0,96841.0,0.3608]
[1732942909239,0.181967,96842.0,96841.0,0.3618]
[1732942918740,0.20262799,96842.0,96841.0,0.3618]
[1732942919743,0.20262799,96842.0,96841.0,0.001]
[1732942919938,0.20262799,96842.0,96841.0,0.3618]
[1732942934044,0.20262799,96842.0,96841.0,0.11433212]
[1732942934352,0.051612,96833.0,96832.0,0.34220548]
[1732942934559,0.051619,96819.0,96818.0,0.3608]
[1732942934760,0.177939,96819.0,96818.0,0.36402861]
[1732942934946,0.177939,96819.0,96818.0,0.3608]
[1732942936659,0.18999495,96819.0,96818.0,0.3608]
[1732942938052,0.18999495,96819.0,96813.0,0.3608]
[1732942938461,0.19099495,96819.0,96813.0,0.3608]
[1732942939249,0.18999495,96819.0,96813.0,0.3608]
[1732942940254,0.051622,96814.0,96813.0,0.3608]
[1732942941848,0.051622,96814.0,96813.0,0.3618]
[1732942942650,0.051622,96814.0,96813.0,0.3638]
[1732942942957,0.177942,96814.0,96813.0,0.3638]
[1732942951562,0.177942,96814.0,96813.0,0.3628]
[1732942951758,0.179942,96814.0,96813.0,0.3628]
[1732942952058,0.179942,96814.0,96813.0,0.3608]
[1732942952565,0.182942,96814.0,96813.0,0.3608]
[1732942952750,0.182942,96814.0,96813.0,0.3618]
[1732942959467,0.182942,96814.0,96813.0,0.001]
[1732942972372,0.182942,96814.0,96803.0,0.0616]
[1732942972578,0.051627,96804.0,96803.0,0.0312]
[1732942972778,0.12632,96804.0,96802.0,0.3608]
[1732942972978,0.051628,96803.0,96802.0,0.3608]
[1732942974273,0.053628,96803.0,96802.0,0.3608]
[1732942975172,0.179948,96803.0,96802.0,0.3608]
[1732942975469,0.182948,96803.0,96802.0,0.3608]
[1732942980681,0.19545137,96803.0,96802.0,0.3608]
[1732942982369,0.19541137,96803.0,96802.0,0.3608]
[1732942986484,0.21608006,96803.0,96802.0,0.3608]
[1732942998079,0.21608006,96803.0,96802.0,0.36402956]
[1732943003493,0.16445206,96803.0,96802.0,0.36402956]
[1732943003688,0.16445206,96803.0,96802.0,0.3608]
[1732943003996,0.16445206,96803.0,96802.0,0.36402956]
[1732943007082,0.03817206,96803.0,96802.0,0.36402956]
[1732943007286,0.01750337,96803.0,96802.0,0.36919685]
[1732943007488,0.14374337,96803.0,96802.0,0.36919685]
[1732943008594,0.01750337,96803.0,96802.0,0.36919685]
[1732943008892,0.14374337,96803.0,96802.0,0.36919685]
[1732943009286,0.01750337,96803.0,96802.0,0.36919685]
[1732943009486,0.14374337,96803.0,96802.0,0.36919685]
[1732943009696,0.01750337,96803.0,96802.0,0.36919685]
[1732943009887,0.14374337,96803.0,96802.0,0.36919685]
[1732943011993,0.14374337,96803.0,96802.0,0.36402956]
[1732943013490,0.01750337,96803.0,96802.0,0.36402956]
[1732943013689,0.14374337,96803.0,96802.0,0.36402956]
[1732943014498,0.14374337,96803.0,96802.0,0.3608]
[1732943014687,0.14374337,96803.0,96802.0,0.36402942]